[Event "2. AUT Bundesliga 2020-21"]
[Site "Graz"]
[Date "2021.04.10"]
[Round "4.9"]
[White "Meyer, Gordon"]
[Black "Teuschler, Barbara"]
[Result "0-1"]
[ECO "A07"]
[WhiteElo "2216"]
[BlackElo "2109"]
[Annotator "NA"]
[PlyCount "96"]
[EventDate "2021.01.17"]
[EventType "team-tourn"]
[EventCountry "AUT"]
[SourceTitle "playchess.com"]
[Source "ChessBase"]
[SourceQuality "1"]
[TimeControl "40/5400+30:1800+30"]

1. Nf3 {[%emt 0:00:00]} d5 {[%emt 0:01:40]} 2. g3 {[%emt 0:00:00]} Nf6 {[%emt 0:00:14]} 3. Bg2 {[%emt 0:00:05]} c6 {[%emt 0:00:15]} 4. O-O {[%emt 0:01:34]} Bg4 {[%emt 0:01:39]} 5. c4 {[%emt 0:05:50]} e6 {[%emt 0:00:53]} 6. b3 {[%emt 0:02:26]} Nbd7 {[%emt 0:00:44]} 7. Bb2 {[%emt 0:00:43]} Be7 {[%emt 0:07:25]} 8. d3 {[%emt 0:01:29]} O-O {[%emt 0:03:08]} 9. Nbd2 {[%emt 0:00:51]} a5 {[%emt 0:02:44]} 10. cxd5 {[%emt 0:03:04]} exd5 {[%emt 0:00:50]} 11. Nd4 {[%emt 0:02:52]} Nc5 {[%emt 0:02:23]} 12. h3 {[%emt 0:02:33]} Bd7 {[%emt 0:06:07]} 13. Rc1 {[%emt 0:08:02]} Re8 {[%emt 0:11:11]} 14. Qc2 {[%emt 0:03:05]} Qb6 {[%emt 0:02:50]} 15. a3 {[%emt 0:23:09]} Bd6 {[%emt 0:04:47]} 16. Rfe1 {[%emt 0:01:48]} Rad8 {[%emt 0:10:56]} 17. e4 {[%emt 0:07:57]} dxe4 {[%emt 0:03:48]} 18. dxe4 {[%emt 0:00:45]} Qa7 {[%emt 0:11:03]} 19. e5 {[%emt 0:03:50]} Bxe5 {[%emt 0:10:00]} 20. Qxc5 {[%emt 0:00:36]} Qxc5 {[%emt 0:00:03]} 21. Rxc5 {[%emt 0:00:07]} Bxd4 {[%emt 0:00:02]} 22. Rxe8+ {[%emt 0:00:09]} Bxe8 {[%emt 0:00:01]} 23. Bxd4 {[%emt 0:03:49]} Rxd4 {[%emt 0:00:03]} 24. Rc2 {[%emt 0:05:08]} a4 {[%emt 0:05:14]} 25. bxa4 {[%emt 0:00:47]} Rxa4 {[%emt 0:00:09]} 26. Rc3 {[%emt 0:00:07]} Kf8 {[%emt 0:01:07]} 27. Kf1 {[%emt 0:03:23]} Bd7 {[%emt 0:00:48]} 28. Nc4 {[%emt 0:03:30]} Be6 {[%emt 0:03:25]} 29. Ne5 {[%emt 0:03:51]} Ke7 {[%emt 0:01:53]} 30. Ke1 {[%emt 0:00:16]} Bd5 {[%emt 0:01:48]} 31. f3 {[%emt 0:00:49]} Nd7 {[%emt 0:00:43]} 32. Nd3 {[%emt 0:00:42]} Rc4 {[%emt 0:01:13]} 33. Kd2 {[%emt 0:02:31]} Rxc3 {[%emt 0:00:47]} 34. Kxc3 {[%emt 0:00:05]} g5 {[%emt 0:01:47]} 35. Nb4 {[%emt 0:01:11]} Be6 {[%emt 0:00:15]} 36. f4 {[%emt 0:00:34]} f6 {[%emt 0:02:19]} 37. fxg5 {[%emt 0:03:07]} fxg5 {[%emt 0:00:06]} 38. a4 {[%emt 0:03:17]} Nb6 {[%emt 0:02:10]} 39. a5 {[%emt 0:00:10]} Nd5+ {[%emt 0:00:15]} 40. Nxd5+ {[%emt 0:00:00]} Bxd5 {[%emt 0:00:00]} 41. Bf1 {[%emt 0:04:54]} Kd6 {[%emt 0:10:09]} 42. a6 {[%emt 0:02:22]} bxa6 {[%emt 0:00:36]} 43. Bxa6 {[%emt 0:00:11]} Ke5 {[%emt 0:01:16]} 44. Kd3 {[%emt 0:05:07]} Bg2 {[%emt 0:01:21]} 45. Bb7 {[%emt 0:00:05]} Kd6 {[%emt 0:01:33]} 46. h4 {[%emt 0:00:14]} Kc7 {[%emt 0:00:05]} 47. Ba8 {[%emt 0:02:26]} gxh4 {[%emt 0:02:49]} 48. gxh4 {[%emt 0:00:12]} Kb8 {[%emt 0:00:01]} 0-1

[Event "2. AUT Bundesliga 2020-21"]
[Site "Graz"]
[Date "2021.04.10"]
[Round "4.10"]
[White "Birk, Steffen"]
[Black "Wiesinger, Robert"]
[Result "1-0"]
[ECO "C49"]
[WhiteElo "2186"]
[BlackElo "2239"]
[Annotator "NA"]
[PlyCount "76"]
[EventDate "2021.01.17"]
[EventType "team-tourn"]
[EventCountry "AUT"]
[SourceTitle "playchess.com"]
[Source "ChessBase"]
[SourceQuality "1"]
[TimeControl "40/5400+30:1800+30"]

1. e4 {[%emt 0:00:00]} e5 {[%emt 0:00:00]} 2. Nf3 {[%emt 0:00:00]} Nc6 {[%emt 0:00:00]} 3. Nc3 {[%emt 0:00:00]} Nf6 {[%emt 0:00:00]} 4. Bb5 {[%emt 0:00:13]} Bb4 {[%emt 0:00:41]} 5. O-O {[%emt 0:00:26]} O-O {[%emt 0:00:30]} 6. Bxc6 {[%emt 0:00:39]} dxc6 {[%emt 0:15:55]} 7. d3 {[%emt 0:00:20]} Bd6 {[%emt 0:07:02]} 8. Ne2 {[%emt 0:12:50]} c5 {[%emt 0:00:48]} 9. Ng3 {[%emt 0:01:18]} Re8 {[%emt 0:06:26]} 10. h3 {[%emt 0:04:44]} Nd7 {[%emt 0:02:13]} 11. Bg5 {[%emt 0:21:31]} f6 {[%emt 0:01:28]} 12. Be3 {[%emt 0:00:09]} Nf8 $11 {[%emt 0:05:00]} 13. Nd2 {[%emt 0:02:40]} Ne6 {[%emt 0:08:39]} 14. Nc4 {[%emt 0:09:04]} b6 {[%emt 0:07:06]} 15. c3 {[%emt 0:08:38]} Bf8 {[%emt 0:07:02]} 16. Qb3 {[%emt 0:12:49]} Kh8 {[%emt 0:06:06]} 17. Rad1 {[%emt 0:00:58]} a5 {[%emt 0:07:07]} 18. a4 {[%emt 0:00:19]} Ba6 {[%emt 0:01:40]} 19. Qc2 {[%emt 0:04:57]} Qd7 {[%emt 0:01:55]} 20. b3 {[%emt 0:00:16]} Rad8 {[%emt 0:01:05]} 21. Nf5 {[%emt 0:02:40]} g6 {[%emt 0:02:38]} 22. Ng3 {[%emt 0:02:04]} Qe7 {[%emt 0:06:40]} 23. Qc1 {[%emt 0:09:48]} Rd7 {[%emt 0:01:06]} 24. f4 {[%emt 0:00:33]} exf4 {[%emt 0:03:10]} 25. Bxf4 {[%emt 0:00:05]} Red8 {[%emt 0:00:46]} 26. Rf3 {[%emt 0:01:31]} Bg7 {[%emt 0:02:30]} 27. Bh6 {[%emt 0:01:03]} Bxh6 {[%emt 0:01:31]} 28. Qxh6 {[%emt 0:00:02]} Ng5 {[%emt 0:00:37]} 29. Re3 {[%emt 0:00:55]} Nf7 {[%emt 0:00:32]} 30. Qf4 {[%emt 0:00:27]} Bxc4 {[%emt 0:00:24]} 31. bxc4 {[%emt 0:00:05]} Ne5 {[%emt 0:00:38]} 32. Rf1 {[%emt 0:01:05]} Rxd3 {[%emt 0:01:00]} 33. Rxd3 {[%emt 0:00:42]} Rxd3 {[%emt 0:00:02]} 34. h4 {[%emt 0:00:30]} Nxc4 35. h5 {[%emt 0:02:00]} Qe5 {[%emt 0:04:09]} 36. Qh6 {[%emt 0:00:09]} Qe7 {[%emt 0:00:42]} 37. Kh2 {[%emt 0:02:09]} Ne3 {[%emt 0:00:43]} 38. Rf4 {[%emt 0:00:30]} Rd6 {[%emt 0:01:09]} 1-0

[Event "2. AUT Bundesliga 2020-21"]
[Site "Graz"]
[Date "2021.04.10"]
[Round "4.11"]
[White "Raber, Florian"]
[Black "Wendl, Philipp"]
[Result "1-0"]
[ECO "D05"]
[WhiteElo "2128"]
[BlackElo "1942"]
[Annotator "NA"]
[PlyCount "71"]
[EventDate "2021.01.17"]
[EventType "team-tourn"]
[EventCountry "AUT"]
[SourceTitle "playchess.com"]
[Source "ChessBase"]
[SourceQuality "1"]
[TimeControl "40/5400+30:1800+30"]

1. d4 {[%emt 0:00:00]} d5 {[%emt 0:00:00]} 2. Nf3 {[%emt 0:00:00]} Nf6 {[%emt 0:00:00]} 3. e3 {[%emt 0:00:00]} c5 {[%emt 0:00:09]} 4. c3 {[%emt 0:00:51]} e6 {[%emt 0:00:40]} 5. Bd3 {[%emt 0:00:22]} Nc6 {[%emt 0:05:02]} 6. Nbd2 {[%emt 0:00:19]} Bd6 {[%emt 0:01:06]} 7. dxc5 {[%emt 0:00:28]} Bxc5 {[%emt 0:00:13]} 8. O-O {[%emt 0:00:07]} O-O {[%emt 0:00:11]} 9. e4 {[%emt 0:00:07]} e5 {[%emt 0:17:18]} 10. exd5 {[%emt 0:02:34]} Qxd5 {[%emt 0:01:00]} 11. Qc2 {[%emt 0:02:45]} h6 {[%emt 0:10:56]} 12. Bc4 {[%emt 0:07:49]} Qd8 {[%emt 0:03:13]} 13. b4 {[%emt 0:11:28]} Bd6 {[%emt 0:01:39]} 14. h3 {[%emt 0:07:47]} b6 {[%emt 0:04:57]} 15. Re1 {[%emt 0:07:09]} Qc7 {[%emt 0:01:40]} 16. Ne4 {[%emt 0:05:31]} Nxe4 {[%emt 0:03:05]} 17. Qxe4 {[%emt 0:00:06]} Bb7 {[%emt 0:01:41]} 18. Bxh6 {[%emt 0:14:11]} Ne7 {[%emt 0:13:01]} 19. Qg4 {[%emt 0:00:41]} g6 {[%emt 0:00:11]} 20. Bxf8 {[%emt 0:06:24]} Rxf8 {[%emt 0:00:11]} 21. Ng5 {[%emt 0:07:42]} Nf5 {[%emt 0:03:09]} 22. Nxf7 {[%emt 0:05:27]} Rxf7 {[%emt 0:00:46]} 23. Qxg6+ {[%emt 0:00:08]} Kf8 {[%emt 0:00:13]} 24. Qxf7+ {[%emt 0:05:14]} Qxf7 {[%emt 0:00:06]} 25. Bxf7 {[%emt 0:00:05]} Kxf7 {[%emt 0:00:08]} 26. Rad1 {[%emt 0:03:35]} Ke6 {[%emt 0:00:30]} 27. a4 {[%emt 0:03:14]} Ne7 {[%emt 0:01:21]} 28. Rd3 {[%emt 0:04:50]} e4 {[%emt 0:01:53]} 29. f3 {[%emt 0:02:17]} a5 {[%emt 0:03:34]} 30. fxe4 {[%emt 0:01:39]} axb4 {[%emt 0:00:20]} 31. Rxd6+ {[%emt 0:01:01]} Kxd6 {[%emt 0:00:19]} 32. cxb4 {[%emt 0:00:02]} Ke5 {[%emt 0:00:16]} 33. a5 {[%emt 0:01:15]} b5 {[%emt 0:00:54]} 34. Rc1 {[%emt 0:00:32]} Bc6 {[%emt 0:01:49]} 35. Kf2 {[%emt 0:00:23]} Kxe4 {[%emt 0:00:19]} 36. Re1+ {[%emt 0:00:11]} 1-0

[Event "2. AUT Bundesliga 2020-21"]
[Site "Graz"]
[Date "2021.04.10"]
[Round "4.12"]
[White "Pretterhofer, Kiaras"]
[Black "Ring, Rudolf"]
[Result "1-0"]
[ECO "B23"]
[WhiteElo "1979"]
[BlackElo "1737"]
[Annotator "NA"]
[PlyCount "75"]
[EventDate "2021.01.17"]
[EventType "team-tourn"]
[EventCountry "AUT"]
[SourceTitle "playchess.com"]
[Source "ChessBase"]
[SourceQuality "1"]
[TimeControl "40/5400+30:1800+30"]

1. e4 {[%emt 0:00:00]} c5 {[%emt 0:00:00]} 2. Nc3 {[%emt 0:00:00]} Nc6 {[%emt 0:00:17]} 3. f4 {[%emt 0:00:23]} d6 {[%emt 0:00:38]} 4. Nf3 {[%emt 0:00:41]} Nf6 {[%emt 0:01:43]} 5. Bc4 {[%emt 0:01:39]} e6 {[%emt 0:06:11]} 6. O-O {[%emt 0:01:28]} Be7 {[%emt 0:00:34]} 7. d3 {[%emt 0:02:42]} O-O {[%emt 0:00:37]} 8. Kh1 {[%emt 0:05:21]} Na5 {[%emt 0:00:12]} 9. e5 {[%emt 0:04:57]} Ne8 {[%emt 0:00:42]} 10. a3 {[%emt 0:04:34]} d5 {[%emt 0:02:31]} 11. Ba2 {[%emt 0:00:21]} Nc6 {[%emt 0:00:48]} 12. Bd2 {[%emt 0:05:03]} a6 {[%emt 0:00:49]} 13. Qe1 {[%emt 0:07:47]} g6 {[%emt 0:06:02]} 14. f5 {[%emt 0:02:26]} exf5 {[%emt 0:24:47]} 15. Nxd5 {[%emt 0:02:45]} Be6 {[%emt 0:01:40]} 16. Nxe7+ {[%emt 0:00:23]} Qxe7 {[%emt 0:00:11]} 17. Bg5 {[%emt 0:03:20]} Qc7 {[%emt 0:03:54]} 18. Qh4 {[%emt 0:07:59]} Bxa2 {[%emt 0:12:41]} 19. Rxa2 {[%emt 0:00:08]} Nd8 {[%emt 0:00:14]} 20. Be7 {[%emt 0:01:34]} Ne6 {[%emt 0:00:50]} 21. Bxf8 {[%emt 0:00:13]} Kxf8 {[%emt 0:00:46]} 22. Qxh7 {[%emt 0:01:46]} Rd8 {[%emt 0:03:31]} 23. Raa1 {[%emt 0:01:07]} N8g7 {[%emt 0:07:59]} 24. Rae1 {[%emt 0:01:59]} Nh5 {[%emt 0:03:07]} 25. Ng5 {[%emt 0:06:15]} Nhg7 {[%emt 0:08:22]} 26. Nxe6+ {[%emt 0:00:20]} Nxe6 {[%emt 0:00:02]} 27. Qh8+ {[%emt 0:00:34]} Ke7 {[%emt 0:00:22]} 28. Qf6+ {[%emt 0:00:12]} Ke8 {[%emt 0:00:47]} 29. Rf3 {[%emt 0:00:19]} Qe7 {[%emt 0:03:53]} 30. Qxe7+ {[%emt 0:02:17]} Kxe7 {[%emt 0:00:01]} 31. g3 {[%emt 0:02:43]} Nd4 {[%emt 0:00:15]} 32. Rf2 {[%emt 0:00:15]} Ke6 {[%emt 0:00:19]} 33. Kg2 {[%emt 0:02:18]} b5 {[%emt 0:01:25]} 34. h4 {[%emt 0:02:39]} Nc6 {[%emt 0:00:14]} 35. g4 {[%emt 0:04:06]} Ne7 {[%emt 0:04:50]} 36. Kg3 {[%emt 0:03:38]} Rd5 {[%emt 0:00:52]} 37. h5 {[%emt 0:01:20]} Rd4 {[%emt 0:02:39]} 38. Rf4 {[%emt 0:01:22]} 1-0

[Event "2. AUT Bundesliga 2020-21"]
[Site "Graz"]
[Date "2021.04.10"]
[Round "4.17"]
[White "Toelly, Michael"]
[Black "Milanovic, Danilo"]
[Result "0-1"]
[ECO "B01"]
[WhiteElo "2094"]
[BlackElo "2466"]
[Annotator "ChessBase"]
[PlyCount "96"]
[EventDate "2021.01.17"]
[EventType "team-tourn"]
[EventCountry "AUT"]
[SourceTitle "playchess.com"]
[Source "ChessBase"]
[SourceQuality "1"]
[TimeControl "40/5400+30:1800+30"]

1. e4 {[%emt 0:00:00]} d5 {[%emt 0:00:00]} 2. exd5 {[%emt 0:00:00]} Qxd5 {[%emt 0:00:00]} 3. Nc3 {[%emt 0:00:00]} Qd8 {[%emt 0:00:00]} 4. Nf3 {[%emt 0:02:12]} Nf6 {[%emt 0:00:32]} 5. Bb5+ {[%emt 0:02:20]} c6 {[%emt 0:01:24]} 6. Bc4 {[%emt 0:01:41]} Bf5 {[%emt 0:09:39]} 7. d3 {[%emt 0:04:21]} e6 {[%emt 0:02:46]} 8. Bf4 {[%emt 0:01:27]} Be7 {[%emt 0:08:45]} 9. Qd2 {[%emt 0:02:36]} Nbd7 {[%emt 0:07:33]} 10. O-O {[%emt 0:05:28]} O-O {[%emt 0:06:22]} 11. Rfe1 {[%emt 0:06:07]} Nb6 {[%emt 0:18:59]} 12. Bb3 {[%emt 0:01:20]} a5 {[%emt 0:01:22]} 13. a3 {[%emt 0:02:19]} Nbd5 {[%emt 0:00:44]} 14. Nxd5 {[%emt 0:04:21]} Nxd5 {[%emt 0:01:26]} 15. Be5 {[%emt 0:02:03]} Bg4 {[%emt 0:02:56]} 16. Bxd5 {[%emt 0:04:53]} Qxd5 {[%emt 0:01:35]} 17. Qf4 {[%emt 0:05:04]} Bxf3 {[%emt 0:08:54]} 18. Qxf3 {[%emt 0:00:12]} Qxf3 {[%emt 0:00:15]} 19. gxf3 {[%emt 0:00:03]} a4 {[%emt 0:00:15]} 20. Kg2 {[%emt 0:09:27]} f6 {[%emt 0:08:31]} 21. Bc3 {[%emt 0:00:41]} Kf7 {[%emt 0:00:05]} 22. f4 {[%emt 0:03:09]} Bd6 {[%emt 0:01:07]} 23. Kf3 {[%emt 0:00:08]} b5 {[%emt 0:02:12]} 24. d4 {[%emt 0:22:44]} Rfd8 {[%emt 0:07:42]} 25. Re3 {[%emt 0:11:55]} Rd7 {[%emt 0:07:21]} 26. Rae1 {[%emt 0:03:35]} Re7 {[%emt 0:00:21]} 27. Bb4 {[%emt 0:03:13]} Bxb4 {[%emt 0:01:09]} 28. axb4 {[%emt 0:00:01]} Rd8 {[%emt 0:00:06]} 29. f5 {[%emt 0:01:05]} Rxd4 {[%emt 0:00:07]} 30. fxe6+ {[%emt 0:00:41]} Ke8 {[%emt 0:00:24]} 31. Rc3 {[%emt 0:01:26]} Rd6 {[%emt 0:00:19]} 32. Rce3 {[%emt 0:00:19]} Rc7 {[%emt 0:00:20]} 33. Kf4 {[%emt 0:00:59]} Ke7 {[%emt 0:02:39]} 34. Kg4 {[%emt 0:00:27]} c5 {[%emt 0:00:21]} 35. bxc5 {[%emt 0:00:32]} Rxc5 {[%emt 0:00:06]} 36. R1e2 {[%emt 0:00:15]} Rc4+ {[%emt 0:00:18]} 37. Kg3 {[%emt 0:00:27]} Rcc6 {[%emt 0:00:18]} 38. Kf4 {[%emt 0:00:51]} Rxe6 {[%emt 0:00:28]} 39. Rd2 {[%emt 0:00:19]} Rc4+ {[%emt 0:00:43]} 40. Kf3 {[%emt 0:00:00]} Rxe3+ {[%emt 0:00:00]} 41. Kxe3 {[%emt 0:00:40]} g5 {[%emt 0:06:28]} 42. Kf3 {[%emt 0:05:25]} Ke6 {[%emt 0:02:00]} 43. Kg3 {[%emt 0:02:40]} h5 {[%emt 0:02:28]} 44. Kf3 {[%emt 0:01:34]} Ke5 {[%emt 0:00:23]} 45. Kg3 {[%emt 0:03:13]} Rd4 {[%emt 0:01:30]} 46. Re2+ {[%emt 0:00:14]} Kd5 {[%emt 0:00:06]} 47. Kf3 {[%emt 0:00:37]} Rb4 {[%emt 0:01:34]} 48. Ke3 {[%emt 0:01:39]} Re4+ {[%emt 0:00:08]} 0-1

[Event "2. AUT Bundesliga 2020-21"]
[Site "Graz"]
[Date "2021.04.11"]
[Round "5.3"]
[White "Ring, Rudolf"]
[Black "Tusha, John"]
[Result "1/2-1/2"]
[ECO "C47"]
[WhiteElo "1737"]
[BlackElo "1783"]
[Annotator "NA RC"]
[PlyCount "80"]
[EventDate "2021.01.17"]
[EventType "team-tourn"]
[EventCountry "AUT"]
[SourceTitle "playchess.com"]
[Source "ChessBase"]
[SourceQuality "1"]
[TimeControl "40/5400+30:1800+30"]

1. e4 e5 2. Nf3 Nf6 3. Nc3 Nc6 4. Bc4 Nxe4 5. Bxf7+ Kxf7 6. Nxe4 d5 7. Neg5+ Kg8 8. d3 h6 9. Nh3 Bg4 10. Qd2 Bxf3 11. gxf3 Nd4 12. Ng1 Qf6 13. Qd1 Qg6 14. Kf1 Nf5 15. Ne2 Qh5 16. Ng1 Nh4 17. h3 Bd6 18. Bd2 Rf8 19. f4 Qxd1+ 20. Rxd1 exf4 21. f3 Nf5 22. Kg2 Nh4+ 23. Kf1 Re8 24. c3 Nf5 25. Kf2 g5 26. Ne2 Rxe2+ 27. Kxe2 Ng3+ 28. Kf2 Nxh1+ 29. Rxh1 Rh7 30. h4 Rg7 31. hxg5 hxg5 32. b3 Kf7 33. Rh6 Rg6 34. Rh7+ Ke6 35. a4 g4 36. fxg4 Rxg4 37. Rh3 Kf5 38. Rh5+ Rg5 39. Rxg5+ Kxg5 40. Kf3 c6 1/2-1/2

[Event "2. AUT Bundesliga 2020-21"]
[Site "Graz"]
[Date "2021.04.11"]
[Round "5.4"]
[White "Guetz, Wolfgang"]
[Black "Tadic, Branko"]
[Result "*"]
[WhiteElo "2061"]
[BlackElo "2487"]
[Annotator "RC"]
[PlyCount "47"]
[EventDate "2021.01.17"]
[EventType "team-tourn"]
[EventCountry "AUT"]
[SourceTitle "playchess.com"]
[Source "ChessBase"]
[SourceQuality "1"]
[TimeControl "40/5400+30:1800+30"]

1. e4 {[%emt 0:00:00]} d6 {[%emt 0:00:00]} 2. d4 {[%emt 0:00:00]} Nf6 {[%emt 0:00:00]} 3. Nc3 {[%emt 0:00:00]} e5 {[%emt 0:00:22]} 4. dxe5 {[%emt 0:01:09]} dxe5 {[%emt 0:00:06]} 5. Qxd8+ {[%emt 0:00:05]} Kxd8 {[%emt 0:00:04]} 6. Nf3 {[%emt 0:01:12]} Bd6 {[%emt 0:00:13]} 7. Bg5 {[%emt 0:01:19]} Nbd7 {[%emt 0:00:21]} 8. O-O-O {[%emt 0:01:38]} Ke8 {[%emt 0:15:04]} 9. Bc4 {[%emt 0:08:33]} a6 {[%emt 0:00:32]} 10. a4 {[%emt 0:10:17]} h6 {[%emt 0:00:57]} 11. Bh4 {[%emt 0:05:33]} Kf8 {[%emt 0:00:12]} 12. Rhe1 {[%emt 0:08:59]} g6 {[%emt 0:00:38]} 13. Rd2 {[%emt 0:16:03]} Kg7 {[%emt 0:01:09]} 14. Red1 {[%emt 0:02:19]} Re8 {[%emt 0:01:05]} 15. Rxd6 {[%emt 0:16:24]} cxd6 {[%emt 0:00:57]} 16. Rxd6 {[%emt 0:00:05]} Rb8 {[%emt 0:11:48]} 17. Bd5 {[%emt 0:07:21]} Nh7 {[%emt 0:06:16]} 18. Bg3 {[%emt 0:01:24]} f6 {[%emt 0:00:40]} 19. b4 {[%emt 0:02:18]} Ndf8 {[%emt 0:12:14]} 20. Rb6 {[%emt 0:02:35]} Ng5 {[%emt 0:12:00]} 21. Nxg5 {[%emt 0:03:24]} hxg5 {[%emt 0:00:01]} 22. f3 {[%emt 0:00:34]} Ne6 {[%emt 0:00:59]} 23. b5 {[%emt 0:02:15]} a5 {[%emt 0:02:36]} 24. Bf2 {[%emt 0:01:12]} *

[Event "2. AUT Bundesliga 2020-21"]
[Site "Graz"]
[Date "2021.04.11"]
[Round "5.8"]
[White "Kiss, Attila"]
[Black "Kristoferitsch, Daniel"]
[Result "*"]
[WhiteElo "2312"]
[BlackElo "2166"]
[Annotator "RC"]
[PlyCount "41"]
[EventDate "2021.01.17"]
[EventType "team-tourn"]
[EventCountry "AUT"]
[SourceTitle "playchess.com"]
[Source "ChessBase"]
[SourceQuality "1"]
[TimeControl "40/5400+30:1800+30"]

1. e4 {[%emt 0:00:00]} c5 {[%emt 0:00:00]} 2. Nf3 {[%emt 0:00:06]} e6 {[%emt 0:00:00]} 3. d4 {[%emt 0:00:28]} cxd4 {[%emt 0:00:00]} 4. Nxd4 {[%emt 0:00:14]} Nf6 {[%emt 0:00:03]} 5. Nc3 {[%emt 0:00:25]} Nc6 {[%emt 0:00:05]} 6. Ndb5 {[%emt 0:00:42]} Bc5 {[%emt 0:00:11]} 7. Nd6+ {[%emt 0:03:20]} Ke7 {[%emt 0:00:07]} 8. Nxc8+ {[%emt 0:00:27]} Rxc8 {[%emt 0:00:11]} 9. Bd3 {[%emt 0:03:06]} Re8 {[%emt 0:03:10]} 10. O-O {[%emt 0:00:56]} a6 {[%emt 0:07:53]} 11. Qe1 {[%emt 0:23:39]} d6 {[%emt 0:03:11]} 12. Be3 {[%emt 0:00:38]} Bxe3 {[%emt 0:19:03]} 13. Qxe3 {[%emt 0:00:28]} Kf8 {[%emt 0:00:40]} 14. Rad1 {[%emt 0:02:38]} Qc7 {[%emt 0:00:58]} 15. Rd2 {[%emt 0:03:59]} h6 {[%emt 0:16:36]} 16. Rfd1 {[%emt 0:04:49]} Rcd8 {[%emt 0:01:22]} 17. Be2 {[%emt 0:02:43]} Re7 {[%emt 0:15:33]} 18. h3 {[%emt 0:13:23]} d5 {[%emt 0:05:35]} 19. exd5 {[%emt 0:11:48]} exd5 {[%emt 0:00:08]} 20. Qg3 {[%emt 0:04:35]} Qb6 21. Bf3 {[%emt 0:02:24]} *

[Event "2. AUT Bundesliga 2020-21"]
[Site "Graz"]
[Date "2021.04.11"]
[Round "5.9"]
[White "Teuschler, Barbara"]
[Black "Marakovits, Nico"]
[Result "*"]
[WhiteElo "2109"]
[BlackElo "2214"]
[Annotator "RC"]
[PlyCount "61"]
[EventDate "2021.01.17"]
[EventType "team-tourn"]
[EventCountry "AUT"]
[SourceTitle "playchess.com"]
[Source "ChessBase"]
[SourceQuality "1"]
[TimeControl "40/5400+30:1800+30"]

1. e4 {[%emt 0:00:00]} c5 {[%emt 0:00:00]} 2. Nf3 {[%emt 0:00:00]} e6 {[%emt 0:00:00]} 3. d4 {[%emt 0:00:00]} cxd4 {[%emt 0:00:00]} 4. Nxd4 {[%emt 0:00:00]} Nc6 {[%emt 0:00:10]} 5. Nc3 {[%emt 0:00:00]} Nf6 {[%emt 0:00:07]} 6. Ndb5 {[%emt 0:01:45]} Bb4 {[%emt 0:00:18]} 7. a3 {[%emt 0:00:10]} Bxc3+ {[%emt 0:00:10]} 8. Nxc3 {[%emt 0:00:05]} d5 {[%emt 0:00:04]} 9. exd5 {[%emt 0:01:09]} exd5 {[%emt 0:00:28]} 10. Bd3 {[%emt 0:00:52]} O-O {[%emt 0:01:28]} 11. O-O {[%emt 0:00:15]} d4 {[%emt 0:00:10]} 12. Ne2 {[%emt 0:01:55]} Bg4 {[%emt 0:01:55]} 13. Bg5 {[%emt 0:04:34]} Re8 {[%emt 0:05:39]} 14. Re1 {[%emt 0:00:33]} Qd6 {[%emt 0:09:01]} 15. Qd2 {[%emt 0:05:03]} Bxe2 {[%emt 0:09:56]} 16. Rxe2 {[%emt 0:11:51]} Rxe2 {[%emt 0:00:31]} 17. Qxe2 {[%emt 0:00:10]} Re8 {[%emt 0:00:37]} 18. Qd2 {[%emt 0:00:55]} Ng4 {[%emt 0:19:06]} 19. Bf4 {[%emt 0:01:42]} Qe6 {[%emt 0:01:32]} 20. h3 {[%emt 0:22:44]} Nge5 {[%emt 0:02:16]} 21. Bxe5 {[%emt 0:04:34]} Qxe5 {[%emt 0:02:27]} 22. Rd1 {[%emt 0:03:35]} g6 {[%emt 0:05:01]} 23. Bf1 {[%emt 0:06:27]} Kg7 {[%emt 0:03:12]} 24. g3 {[%emt 0:00:23]} Rd8 {[%emt 0:04:19]} 25. Re1 {[%emt 0:00:46]} Qf5 {[%emt 0:05:21]} 26. Qd3 {[%emt 0:04:10]} Qxd3 {[%emt 0:01:40]} 27. Bxd3 {[%emt 0:00:05]} Kf6 {[%emt 0:00:38]} 28. f4 {[%emt 0:05:40]} h5 {[%emt 0:03:18]} 29. Kf2 {[%emt 0:01:36]} b6 {[%emt 0:03:39]} 30. g4 {[%emt 0:01:47]} hxg4 {[%emt 0:01:00]} 31. hxg4 {[%emt 0:00:03]} *

[Event "2. AUT Bundesliga 2020-21"]
[Site "Graz"]
[Date "2021.04.11"]
[Round "5.10"]
[White "Stradner, Stefan"]
[Black "Toller, Maximilian"]
[Result "*"]
[WhiteElo "2124"]
[BlackElo "2014"]
[Annotator "RC"]
[PlyCount "41"]
[EventDate "2021.01.17"]
[EventType "team-tourn"]
[EventCountry "AUT"]
[SourceTitle "playchess.com"]
[Source "ChessBase"]
[SourceQuality "1"]
[TimeControl "40/5400+30:1800+30"]

1. d4 {[%emt 0:00:00]} d5 {[%emt 0:00:00]} 2. Nf3 {[%emt 0:00:08]} Nf6 {[%emt 0:00:00]} 3. e3 {[%emt 0:00:43]} Bf5 {[%emt 0:00:00]} 4. c4 {[%emt 0:03:58]} dxc4 {[%emt 0:00:05]} 5. Bxc4 {[%emt 0:00:11]} e6 {[%emt 0:00:03]} 6. O-O {[%emt 0:02:33]} Bd6 {[%emt 0:00:04]} 7. Nc3 {[%emt 0:00:29]} O-O {[%emt 0:00:06]} 8. Qe2 {[%emt 0:00:40]} Ne4 {[%emt 0:00:07]} 9. Rd1 {[%emt 0:14:41]} Nd7 {[%emt 0:08:18]} 10. Nxe4 {[%emt 0:03:15]} Bxe4 {[%emt 0:00:12]} 11. Bd3 {[%emt 0:00:12]} Bxd3 {[%emt 0:17:17]} 12. Rxd3 {[%emt 0:06:22]} c5 {[%emt 0:10:32]} 13. b3 {[%emt 0:00:55]} Qe7 {[%emt 0:01:21]} 14. Bb2 {[%emt 0:00:58]} Rfd8 {[%emt 0:00:42]} 15. Rad1 {[%emt 0:01:12]} Nb6 {[%emt 0:09:46]} 16. e4 {[%emt 0:18:51]} cxd4 {[%emt 0:07:26]} 17. Nxd4 {[%emt 0:00:52]} Bc5 {[%emt 0:01:00]} 18. Qg4 {[%emt 0:06:06]} g6 {[%emt 0:02:40]} 19. Qe2 {[%emt 0:17:36]} Rac8 {[%emt 0:06:46]} 20. Qd2 {[%emt 0:01:17]} Qf8 {[%emt 0:11:28]} 21. Qa5 {[%emt 0:07:18]} *

[Event "2. AUT Bundesliga 2020-21"]
[Site "Graz"]
[Date "2021.04.11"]
[Round "5.13"]
[White "Frank, Emanuel"]
[Black "Enoeckl, Philipp"]
[Result "*"]
[WhiteElo "2242"]
[BlackElo "2290"]
[Annotator "RC"]
[PlyCount "43"]
[EventDate "2021.01.17"]
[EventType "team-tourn"]
[EventCountry "AUT"]
[SourceTitle "playchess.com"]
[Source "ChessBase"]
[SourceQuality "1"]
[TimeControl "40/5400+30:1800+30"]

1. d4 {[%emt 0:00:00]} g6 {[%emt 0:00:00]} 2. c4 {[%emt 0:00:00]} Bg7 {[%emt 0:00:00]} 3. e4 {[%emt 0:00:00]} d6 {[%emt 0:00:00]} 4. Ne2 {[%emt 0:00:00]} e5 {[%emt 0:04:09]} 5. Nbc3 {[%emt 0:00:37]} Nc6 {[%emt 0:01:12]} 6. d5 {[%emt 0:02:58]} Nd4 {[%emt 0:02:07]} 7. Be3 {[%emt 0:03:45]} Nxe2 {[%emt 0:14:04]} 8. Bxe2 {[%emt 0:00:30]} f5 {[%emt 0:00:12]} 9. exf5 {[%emt 0:11:19]} gxf5 {[%emt 0:00:08]} 10. Bh5+ {[%emt 0:00:25]} Kf8 {[%emt 0:00:10]} 11. O-O {[%emt 0:03:07]} Nf6 {[%emt 0:05:01]} 12. Be2 {[%emt 0:00:59]} a6 {[%emt 0:14:35]} 13. f4 {[%emt 0:05:41]} e4 {[%emt 0:01:21]} 14. Bd4 {[%emt 0:03:28]} h5 {[%emt 0:03:58]} 15. h3 {[%emt 0:17:21]} Qe7 {[%emt 0:06:14]} 16. Qd2 {[%emt 0:05:01]} Bd7 {[%emt 0:03:49]} 17. Nd1 {[%emt 0:05:14]} a5 {[%emt 0:07:46]} 18. Ne3 {[%emt 0:01:25]} b6 {[%emt 0:04:36]} 19. b3 {[%emt 0:01:41]} Qf7 {[%emt 0:01:06]} 20. a3 {[%emt 0:02:12]} Qg6 {[%emt 0:06:35]} 21. b4 {[%emt 0:02:01]} Qg3 {[%emt 0:03:04]} 22. c5 {[%emt 0:10:32]} *